fUSD/lending_fUSD_20240425
["ID","MTS","AMOUNT","RATE_DAILY","PERIOD"]
[323517942,1714063844121,-500.0,0.00011506,2]
[323517943,1714063844131,-823.13,0.00011506,2]
[323517944,1714063844142,-661.3,0.00011506,2]
[323517945,1714063844151,-500.0,0.00011506,2]
[323517946,1714063844161,-500.0,0.00011506,2]
[323517947,1714063844172,-500.0,0.00011506,2]
[323517948,1714063844182,-500.0,0.00011506,2]
[323517949,1714063844192,-500.0,0.00011506,2]
[323517950,1714063844202,-292.12,0.00011506,2]
[323517951,1714063844211,-546.82,0.00011506,2]
[323517952,1714063844221,-863.82,0.00011506,2]
[323517953,1714063844236,-500.0,0.00011506,2]
[323517954,1714063844247,-500.0,0.00011506,2]
[323517955,1714063844258,-500.0,0.00011506,2]
[323517956,1714063844269,-500.0,0.00011506,2]
[323517957,1714063844280,-500.0,0.00011506,2]
[323517958,1714063844291,-565.42,0.00011506,2]
[323517959,1714063844302,-500.01,0.00011506,2]
[323517960,1714063844313,-500.0,0.00011506,2]
[323517961,1714063844323,-500.0,0.00011506,2]
[323517962,1714063844333,-604.05,0.00011506,2]
[323517963,1714063844343,-500.0,0.00011506,2]
[323517964,1714063844353,-871.58,0.00011506,2]
[323517965,1714063844363,-516.2,0.00011506,2]
[323517966,1714063844373,-658.63,0.00011506,2]
[323517967,1714063844384,-500.0,0.00011506,2]
[323517968,1714063844394,-500.0,0.00011506,2]
[323517969,1714063844404,-500.0,0.00011506,2]
[323517970,1714063844413,-500.0,0.00011506,2]
[323517971,1714063844422,-571.72,0.00011506,2]
[323517972,1714063844432,-500.0,0.00011506,2]
[323517973,1714063844442,-550.53,0.00011506,2]
[323517974,1714063844452,-500.0,0.00011506,2]
[323517975,1714063844462,-500.0,0.00011506,2]
[323517976,1714063844472,-617.07,0.00011506,2]
[323517977,1714063844481,-718.18,0.00011506,2]
[323517978,1714063844493,-591.6,0.00011506,2]
[323517979,1714063844502,-500.0,0.00011506,2]
[323517980,1714063844512,-500.0,0.00011506,2]
[323517981,1714063844521,-500.0,0.00011506,2]
[323517982,1714063844530,-500.0,0.00011506,2]
[323517983,1714063844540,-500.0,0.00011506,2]
[323517984,1714063844549,-500.0,0.00011506,2]
[323517985,1714063844558,-500.0,0.00011506,2]
[323517986,1714063844568,-977.6,0.00011506,2]
[323517987,1714063844577,-664.89,0.00011506,2]
[323517988,1714063844587,-500.0,0.00011506,2]
[323517989,1714063844596,-802.15,0.00011506,2]
[323517990,1714063844606,-500.0,0.00011506,2]
[323517991,1714063844615,-500.0,0.00011506,2]
[323517992,1714063844625,-500.0,0.00011506,2]
[323517993,1714063844640,-500.0,0.00011506,2]
[323517994,1714063844649,-500.0,0.00011506,2]
[323517995,1714063844658,-500.0,0.00011506,2]
[323517996,1714063844667,-500.0,0.00011506,2]
[323517997,1714063844677,-500.0,0.00011506,2]
[323517998,1714063844687,-500.0,0.00011506,2]
[323517999,1714063844696,-658.48,0.00011506,2]
[323518000,1714063844705,-500.0,0.00011506,2]
[323518001,1714063844715,-500.0,0.00011506,2]
[323518002,1714063844724,-500.0,0.00011506,2]
[323518003,1714063844734,-500.0,0.00011506,2]
[323518004,1714063844745,-500.0,0.00011506,2]
[323518005,1714063844755,-500.0,0.00011506,2]
[323518006,1714063844765,-500.0,0.00011506,2]
[323518007,1714063844775,-500.0,0.00011506,2]
[323518008,1714063844784,-575.23,0.00011506,2]
[323518009,1714063844794,-500.0,0.00011506,2]
[323518010,1714063844803,-500.0,0.00011506,2]
[323518011,1714063844813,-800.52,0.00011506,2]
[323518012,1714063844822,-500.0,0.00011506,2]
[323518013,1714063844831,-586.01,0.00011506,2]
[323518014,1714063844841,-522.82,0.00011506,2]
[323518015,1714063844850,-500.0,0.00011506,2]
[323518016,1714063844860,-500.0,0.00011506,2]
[323518017,1714063844869,-500.0,0.00011506,2]
[323518018,1714063844878,-500.0,0.00011506,2]
[323518019,1714063844887,-500.0,0.00011506,2]
[323518020,1714063844896,-150.0,0.00011506,2]
[323518021,1714063844905,-500.0,0.00011506,2]
[323518022,1714063844915,-500.0,0.00011506,2]
[323518023,1714063844924,-500.0,0.00011506,2]
[323518024,1714063844933,-500.0,0.00011506,2]
[323518025,1714063844942,-500.0,0.00011506,2]
[323518026,1714063844953,-500.0,0.00011506,2]
[323518027,1714063844963,-500.0,0.00011506,2]
[323518028,1714063844972,-500.0,0.00011506,2]
[323518029,1714063844981,-500.0,0.00011506,2]
[323518030,1714063844991,-500.0,0.00011506,2]
[323518031,1714063845001,-500.0,0.00011506,2]
[323518032,1714063845010,-520.53,0.00011506,2]
[323518033,1714063845019,-592.67,0.00011506,2]
[323518034,1714063845029,-592.91,0.00011506,2]
[323518035,1714063845038,-500.0,0.00011506,2]
[323518036,1714063845047,-691.94,0.00011506,2]
[323518037,1714063845056,-500.0,0.00011506,2]
[323518038,1714063845066,-500.0,0.00011506,2]
[323518039,1714063845075,-500.0,0.00011506,2]
[323518040,1714063845085,-500.0,0.00011506,2]
[323518041,1714063845094,-500.0,0.00011506,2]
[323518042,1714063845103,-500.0,0.00011506,2]
[323518043,1714063845113,-692.68,0.00011506,2]
[323518044,1714063845123,-500.0,0.00011506,2]
[323518045,1714063845132,-569.56,0.00011506,2]
[323518046,1714063845141,-500.0,0.00011506,2]
[323518047,1714063845151,-830.521714,0.00011506,2]
[323518050,1714063845738,-3850.788286,0.00011506,2]
[323518051,1714063845749,-500.0,0.00011506,2]
[323518052,1714063845758,-597.02,0.00011506,2]
[323518054,1714063845767,-500.0,0.00011506,2]
[323518055,1714063845777,-781.37,0.00011506,2]
[323518056,1714063845786,-500.0,0.00011506,2]
[323518057,1714063845795,-99.722014,0.00011506,2]
[323518058,1714063845807,-400.277986,0.00011506,2]
[323518059,1714063845816,-1847.03,0.00011506,2]
[323518060,1714063845826,-1849.43,0.00011506,2]
[323518061,1714063845835,-500.0,0.00011506,2]
[323518062,1714063845844,-1061.04,0.00011506,2]
[323518063,1714063845854,-398.1245412,0.00011506,2]
[323518064,1714063845865,-101.8754588,0.00011506,2]
[323518065,1714063845875,-8599.31,0.00011506,2]
[323518066,1714063845884,-500.0,0.00011506,2]
[323518067,1714063845894,-286.66198079,0.00011506,2]
[323518068,1714063845903,-500.0,0.00011506,2]
[323518069,1714063845913,-500.0,0.00011506,2]
[323518070,1714063845922,-907.76,0.00011506,2]
[323518071,1714063845932,-644.68,0.00011506,2]
[323518072,1714063845941,-925.51,0.00011506,2]
[323518073,1714063845950,-304.31,0.00011506,2]
[323518074,1714063845959,-775.97,0.00011506,2]
[323518075,1714063845969,-500.0,0.00011506,2]
[323518076,1714063845978,-1668.07,0.00011506,2]
[323518077,1714063845987,-500.0,0.00011506,2]
[323518078,1714063845999,-515.92,0.00011506,2]
[323518079,1714063846008,-500.0,0.00011506,2]
[323518080,1714063846018,-9433.81,0.00011506,2]
[323518081,1714063846027,-500.0,0.00011506,2]
[323518082,1714063846036,-106.12256241,0.00011506,2]
[323518083,1714063846049,-507.11743759,0.00011506,2]
[323518084,1714063846058,-1154.85,0.00011506,2]
[323518085,1714063846067,-588.18,0.00011506,2]
[323518086,1714063846076,-500.0,0.00011506,2]
[323518087,1714063846086,-500.0,0.00011506,2]
[323518088,1714063846096,-500.0,0.00011506,2]
[323518089,1714063846105,-500.0,0.00011506,2]
[323518090,1714063846115,-500.0,0.00011506,2]
[323518091,1714063846125,-1010.70766241,0.00011506,2]
[323518092,1714063846136,-43.33233759,0.00011506,2]
[323518093,1714063846146,-500.0,0.00011506,2]
[323518094,1714063846155,-760.28,0.00011506,2]
[323518095,1714063846165,-175.81339301,0.00011506,2]
[323518096,1714063846368,567.87759069,8.502e-05,2]
[323518097,1714063847499,-242.39591619,0.00010958,2]
[323518098,1714063847512,-223.33858381,0.00010958,2]
[323518099,1714063847557,-3930.55985511,0.00010958,2]
[323518100,1714063847574,-277.02156108,0.00010958,2]
[323518101,1714063847586,-500.0,0.00010958,2]
[323518102,1714063847599,-500.0,0.00010958,2]
[323518103,1714063847613,-4430.92,0.00011232,2]
[323518104,1714063847627,-500.0,0.00011232,2]
[323518105,1714063847640,-675.21240001,0.00011242,2]
[323518106,1714063847654,-675.21240001,0.00011406,2]
[323518107,1714063847669,-324.18660699,0.00011506,2]
[323518108,1714063847683,-500.0,0.00011506,2]
[323518109,1714063847697,-500.0,0.00011506,2]
[323518110,1714063847711,-173.67,0.00011506,2]
[323518111,1714063847725,-500.0,0.00011506,2]
[323518112,1714063847738,-885.62,0.00011506,2]
[323518113,1714063847752,-500.0,0.00011506,2]
[323518114,1714063847762,-534.31,0.00011506,2]
[323518115,1714063847771,-16801.35,0.00011506,2]
[323518116,1714063847781,-500.0,0.00011506,2]
[323518117,1714063847790,-500.0,0.00011506,2]
[323518118,1714063847800,-500.0,0.00011506,2]
[323518119,1714063847810,-23756.22,0.00011506,2]
[323518120,1714063847819,-1400.86,0.00011506,2]
[323518121,1714063847829,-500.0,0.00011506,2]
[323518122,1714063847838,-601.41,0.00011506,2]
[323518123,1714063847847,-500.0,0.00011506,2]
[323518124,1714063847857,-1863.95,0.00011506,2]
[323518125,1714063847866,-500.0,0.00011506,2]
[323518126,1714063847875,-500.0,0.00011506,2]
[323518127,1714063847884,-182.1,0.00011506,2]
[323518128,1714063847894,-500.0,0.00011506,2]
[323518129,1714063847903,-557.45,0.00011506,2]
[323518130,1714063847913,-500.0,0.00011506,2]
[323518131,1714063847922,-500.0,0.00011506,2]
[323518132,1714063847932,-500.0,0.00011506,2]
[323518133,1714063847941,-964.3,0.00011506,2]
[323518134,1714063847951,-658.14,0.00011506,2]
[323518135,1714063847961,-720.39,0.00011506,2]
[323518136,1714063847971,-593.85,0.00011506,2]
[323518137,1714063847981,-747.63,0.00011506,2]
[323518138,1714063847990,-2957.32,0.00011506,2]
[323518139,1714063848002,-639.24,0.00011506,2]
[323518140,1714063848012,-500.0,0.00011506,2]
[323518141,1714063848358,-500.0,0.00011506,2]
[323518142,1714063848386,-500.0,0.00011506,2]
[323518143,1714063848411,-500.0,0.00011506,2]
[323518144,1714063848421,-500.0,0.00011506,2]
[323518145,1714063848431,-500.0,0.00011506,2]
[323518146,1714063848440,-548.79,0.00011506,2]
[323518147,1714063848450,-1278.96,0.00011506,2]
[323518148,1714063848459,-616.92,0.00011506,2]
[323518149,1714063848468,-500.0,0.00011506,2]
[323518150,1714063848478,-500.0,0.00011506,2]
[323518151,1714063848487,-598.98,0.00011506,2]
[323518152,1714063848497,-500.0,0.00011506,2]
[323518153,1714063848506,-500.0,0.00011506,2]
[323518154,1714063848516,-500.0,0.00011506,2]
[323518155,1714063848525,-686.66,0.00011506,2]
[323518156,1714063848535,-1007.65,0.00011506,2]
[323518157,1714063848545,-500.0,0.00011506,2]
[323518158,1714063848555,-500.0,0.00011506,2]
[323518159,1714063848564,-1504.18,0.00011506,2]
[323518160,1714063848573,-504.34618358,0.00011506,2]
[323518161,1714063848582,-326.52041268,0.00011506,2]
[323518162,1714063848591,-943.48,0.00011506,2]
[323518163,1714063848601,-500.0,0.00011506,2]
[323518164,1714063848610,-500.0,0.00011506,2]
[323518165,1714063848620,-943.9,0.00011506,2]
[323518166,1714063848630,-500.0,0.00011506,2]
[323518167,1714063848640,-500.0,0.00011506,2]
[323518168,1714063848649,-1059.02,0.00011506,2]
[323518169,1714063848659,-500.0,0.00011506,2]
[323518170,1714063848668,-993.09,0.00011506,2]
[323518171,1714063848678,-500.0,0.00011506,2]
[323518172,1714063848688,-500.0,0.00011506,2]
[323518173,1714063848698,-997.54,0.00011506,2]
[323518174,1714063848708,-500.0,0.00011506,2]
[323518175,1714063848718,-500.0,0.00011506,2]
[323518176,1714063848728,-3762.7,0.00011506,2]
[323518177,1714063848738,-500.0,0.00011506,2]
[323518178,1714063848752,-500.0,0.00011506,2]
[323518179,1714063848761,-899.78,0.00011506,2]
[323518180,1714063848771,-756.22,0.00011506,2]
[323518181,1714063848781,-697.2,0.00011506,2]
[323518182,1714063848791,-604.7,0.00011506,2]
[323518183,1714063848800,-500.0,0.00011506,2]
[323518184,1714063848810,-500.0,0.00011506,2]
[323518185,1714063848819,-550.16,0.00011506,2]
[323518186,1714063848828,-500.0,0.00011506,2]
[323518187,1714063848837,-500.0,0.00011506,2]
[323518188,1714063848847,-3028.49,0.00011506,2]
[323518189,1714063848856,-500.0,0.00011506,2]
[323518190,1714063848866,-500.0,0.00011506,2]
[323518191,1714063848875,-500.0,0.00011506,2]
[323518192,1714063848885,-640.99,0.00011506,2]
[323518193,1714063848894,-617.0,0.00011506,2]
[323518194,1714063848903,-572.16,0.00011506,2]
[323518195,1714063848912,-3038.24,0.00011506,2]
[323518196,1714063848922,-500.0,0.00011506,2]
[323518197,1714063848931,-500.0,0.00011506,2]
[323518198,1714063848942,-823.42,0.00011506,2]
[323518199,1714063848952,-714.72,0.00011506,2]
[323518200,1714063848961,-500.0,0.00011506,2]
[323518201,1714063848972,-883.12,0.00011506,2]
[323518202,1714063848983,-3199.07,0.00011506,2]
[323518203,1714063848994,-517.86,0.00011506,2]
[323518204,1714063849004,-892.09,0.00011506,2]
[323518205,1714063849013,-500.0,0.00011506,2]
[323518206,1714063849022,-5880.19,0.00011506,2]
[323518207,1714063849034,-500.0,0.00011506,2]
[323518208,1714063849044,-500.0,0.00011506,2]
[323518209,1714063849055,-500.0,0.00011506,2]
[323518210,1714063849065,-500.0,0.00011506,2]
[323518211,1714063849076,-573.61,0.00011506,2]
[323518212,1714063849086,-500.0,0.00011506,2]
[323518213,1714063849095,-514.61,0.00011506,2]
[323518214,1714063849105,-500.0,0.00011506,2]
[323518215,1714063849115,-505.73,0.00011506,2]
[323518216,1714063849126,-733.4,0.00011506,2]
[323518217,1714063849136,-425.67,0.00011506,2]
[323518218,1714063849146,-500.0,0.00011506,2]
[323518219,1714063849155,-1921.67,0.00011506,2]
[323518220,1714063849166,-556.54,0.00011506,2]
[323518221,1714063849176,-500.0,0.00011506,2]
[323518222,1714063849186,-509.54,0.00011506,2]
[323518223,1714063849196,-4080.18,0.00011506,2]
[323518224,1714063849205,-4127.71,0.00011506,2]
[323518225,1714063849216,-559.97,0.00011506,2]
[323518226,1714063849226,-1748.56,0.00011506,2]
[323518227,1714063849237,-751.43,0.00011506,2]
[323518228,1714063849250,-500.0,0.00011506,2]
[323518229,1714063849260,-500.0,0.00011506,2]
[323518230,1714063849270,-1110.0,0.00011506,2]
[323518231,1714063849281,-500.0,0.00011506,2]
[323518232,1714063849291,-1896.63,0.00011506,2]
[323518233,1714063849302,-568.09,0.00011506,2]
[323518234,1714063849312,-500.0,0.00011506,2]
[323518235,1714063849325,-1450.25,0.00011506,2]
[323518236,1714063849335,-500.0,0.00011506,2]
[323518237,1714063849345,-584.82,0.00011506,2]
[323518238,1714063849354,-1728.81,0.00011506,2]
[323518239,1714063849364,-567.65,0.00011506,2]
[323518240,1714063849374,-4607.61,0.00011506,2]
[323518241,1714063849383,-3295.21,0.00011506,2]
[323518242,1714063849393,-1608.62,0.00011506,2]
[323518243,1714063849403,-500.0,0.00011506,2]
[323518244,1714063849414,-500.0,0.00011506,2]
[323518245,1714063849423,-1355.4,0.00011506,2]
[323518246,1714063849434,-500.0,0.00011506,2]
[323518247,1714063849444,-836.27,0.00011506,2]
[323518248,1714063849455,-500.0,0.00011506,2]
[323518249,1714063849465,-620.73,0.00011506,2]
[323518250,1714063849475,-1167.67,0.00011506,2]
[323518251,1714063849486,-511.33,0.00011506,2]
[323518252,1714063849497,-500.0,0.00011506,2]
[323518253,1714063849507,-648.56,0.00011506,2]
[323518254,1714063849517,-2263.32,0.00011506,2]
[323518255,1714063849528,-500.0,0.00011506,2]
[323518256,1714063849538,-500.0,0.00011506,2]
[323518257,1714063849547,-500.0,0.00011506,2]
[323518258,1714063849558,-815.47,0.00011506,2]
[323518259,1714063849568,-500.0,0.00011506,2]
[323518260,1714063849578,-564.65,0.00011506,2]
[323518261,1714063849588,-500.0,0.00011506,2]
[323518262,1714063849599,-395.03,0.00011506,2]
[323518263,1714063849609,-500.0,0.00011506,2]
[323518264,1714063849619,-500.0,0.00011506,2]
[323518265,1714063849629,-500.0,0.00011506,2]
[323518266,1714063849639,-916.57,0.00011506,2]
[323518267,1714063849649,-500.0,0.00011506,2]
[323518268,1714063849659,-500.0,0.00011506,2]
[323518269,1714063849669,-1126.47,0.00011506,2]
[323518270,1714063849679,-500.0,0.00011506,2]
[323518271,1714063849690,-500.0,0.00011506,2]
[323518272,1714063849700,-789.05,0.00011506,2]
[323518273,1714063849710,-500.0,0.00011506,2]
[323518274,1714063849719,-809.84,0.00011506,2]
[323518275,1714063849728,-4430.92,0.00011506,2]
[323518276,1714063849737,-150.0,0.00011524,2]
[323518277,1714063849750,-6896.3510883,0.00011524,2]
[323518278,1714063849759,-162.29394169,0.00011536,2]
[323518279,1714063849768,-209.85632228,0.00011536,2]
[323518280,1714063849778,-2882.7501998,0.00011541,2]
[323518281,1714063849787,-150.0,0.00011578,2]
[323518282,1714063849797,-2882.7501998,0.00011586,2]
[323518283,1714063849807,-236.5593335,0.00011598,2]
[323518284,1714063849816,-1500.0,0.000116,4]
[323518285,1714063849826,-2882.7501998,0.00011631,2]
[323518286,1714063849835,-576.35314372,0.0001164,2]
[323518287,1714063849845,-936.97,0.0001165,2]
[323518288,1714063849855,-2882.7501998,0.00011675,2]
[323518289,1714063849864,-150.0,0.00011678,2]
[323518290,1714063849873,-150.0,0.00011685,2]
[323518291,1714063849882,-150.0,0.00011694,2]
[323518292,1714063849891,-150.0,0.000117,2]
[323518293,1714063849900,-1500.0,0.000117,4]
[323518294,1714063849909,-2882.7501998,0.0001172,2]
[323518295,1714063849919,-236.5593335,0.00011749,2]
[323518296,1714063849928,-150.0,0.00011752,2]
[323518297,1714063849937,-150.0,0.00011759,2]
[323518298,1714063849946,-2882.7501998,0.00011765,2]
[323518299,1714063849956,-150.0,0.00011772,2]
[323518300,1714063849965,-2012.88,0.00011779,2]
[323518301,1714063849975,-3006.73,0.00011779,2]
[323518302,1714063849984,-1288.23,0.00011779,2]
[323518303,1714063849998,-500.0,0.0001178,2]
[323518304,1714063850009,-500.0,0.0001178,2]
[323518305,1714063850018,-500.0,0.0001178,2]
[323518306,1714063850027,-500.0,0.0001178,2]
[323518307,1714063850038,-509.28,0.0001178,2]
[323518308,1714063850047,-500.0,0.0001178,2]
[323518309,1714063850056,-500.0,0.0001178,2]
[323518310,1714063850066,-500.0,0.0001178,2]
[323518311,1714063850075,-500.0,0.0001178,2]
[323518312,1714063850086,-500.0,0.0001178,2]
[323518313,1714063850097,-542.13,0.0001178,2]
[323518314,1714063850108,-500.0,0.0001178,2]
[323518315,1714063850118,-204.12,0.0001178,2]
[323518316,1714063850129,-511.12,0.0001178,2]
[323518317,1714063850140,-500.0,0.0001178,2]
[323518318,1714063850151,-500.0,0.0001178,2]
[323518319,1714063850161,-500.0,0.0001178,2]
[323518320,1714063850172,-500.0,0.0001178,2]
[323518321,1714063850182,-608.42,0.0001178,2]
[323518322,1714063850193,-584.58,0.0001178,2]
[323518323,1714063850203,-500.0,0.0001178,2]
[323518324,1714063850215,-823.13,0.0001178,2]
[323518325,1714063850225,-500.0,0.0001178,2]
[323518326,1714063850240,-500.0,0.0001178,2]
[323518327,1714063850253,-500.0,0.0001178,2]
[323518328,1714063850265,-500.0,0.0001178,2]
[323518329,1714063850276,-546.82,0.0001178,2]
[323518330,1714063850287,-863.82,0.0001178,2]
[323518331,1714063850297,-500.0,0.0001178,2]
[323518332,1714063850309,-256.29,0.0001178,2]
[323518333,1714063850320,-500.0,0.0001178,2]
[323518334,1714063850332,-500.0,0.0001178,2]
[323518335,1714063850343,-488.28,0.0001178,2]
[323518336,1714063850353,-565.42,0.0001178,2]
[323518337,1714063850363,-500.01,0.0001178,2]
[323518338,1714063850373,-500.0,0.0001178,2]
[323518339,1714063850383,-500.0,0.0001178,2]
[323518340,1714063850393,-604.05,0.0001178,2]
[323518341,1714063850403,-500.0,0.0001178,2]
[323518342,1714063850413,-871.58,0.0001178,2]
[323518343,1714063850422,-516.2,0.0001178,2]
[323518344,1714063850434,-658.63,0.0001178,2]
[323518345,1714063850444,-500.0,0.0001178,2]
[323518346,1714063850454,-500.0,0.0001178,2]
[323518347,1714063850464,-500.0,0.0001178,2]
[323518348,1714063850475,-500.0,0.0001178,2]
[323518349,1714063850484,-571.72,0.0001178,2]
[323518350,1714063850496,-500.0,0.0001178,2]
[323518351,1714063850505,-550.53,0.0001178,2]
[323518352,1714063850517,-500.0,0.0001178,2]
[323518353,1714063850527,-500.0,0.0001178,2]
[323518354,1714063850538,-617.07,0.0001178,2]
[323518355,1714063850549,-718.18,0.0001178,2]
[323518356,1714063850559,-591.6,0.0001178,2]
[323518357,1714063850568,-500.0,0.0001178,2]
[323518358,1714063850578,-500.0,0.0001178,2]
[323518359,1714063850588,-500.0,0.0001178,2]
[323518360,1714063850599,-500.0,0.0001178,2]
[323518361,1714063850609,-500.0,0.0001178,2]
[323518362,1714063850619,-500.0,0.0001178,2]
[323518363,1714063850629,-977.6,0.0001178,2]
[323518364,1714063850639,-664.89,0.0001178,2]
[323518365,1714063850649,-500.0,0.0001178,2]
[323518366,1714063850659,-802.15,0.0001178,2]
[323518367,1714063850670,-500.0,0.0001178,2]
[323518368,1714063850680,-500.0,0.0001178,2]
[323518369,1714063850691,-500.0,0.0001178,2]
[323518370,1714063850701,-500.0,0.0001178,2]
[323518371,1714063850712,-500.0,0.0001178,2]
[323518372,1714063850722,-500.0,0.0001178,2]
[323518373,1714063850732,-500.0,0.0001178,2]
[323518374,1714063850746,-500.0,0.0001178,2]
[323518375,1714063850757,-500.0,0.0001178,2]
[323518376,1714063850767,-658.48,0.0001178,2]
[323518377,1714063850776,-500.0,0.0001178,2]
[323518378,1714063850787,-500.0,0.0001178,2]
[323518379,1714063850798,-356.22,0.0001178,2]
[323518380,1714063850808,-500.0,0.0001178,2]
[323518381,1714063850818,-500.0,0.0001178,2]
[323518382,1714063850828,-500.0,0.0001178,2]
[323518383,1714063850837,-500.0,0.0001178,2]
[323518384,1714063850846,-500.0,0.0001178,2]
[323518385,1714063850856,-575.23,0.0001178,2]
[323518386,1714063850865,-500.0,0.0001178,2]
[323518387,1714063850875,-500.0,0.0001178,2]
[323518388,1714063850884,-800.52,0.0001178,2]
[323518389,1714063850893,-500.0,0.0001178,2]
[323518390,1714063850903,-586.01,0.0001178,2]
[323518391,1714063850913,-522.82,0.0001178,2]
[323518392,1714063850923,-504.06157844,0.0001178,2]
[323518393,1714063850932,-500.0,0.0001178,2]
[323518394,1714063850942,-500.0,0.0001178,2]
[323518395,1714063850952,-516.88581693,0.0001178,2]
[323518396,1714063850962,-500.0,0.0001178,2]
[323518397,1714063850971,-150.0,0.0001178,2]
[323518398,1714063850981,-500.0,0.0001178,2]
[323518399,1714063850991,-500.0,0.0001178,2]
[323518400,1714063851004,-500.0,0.0001178,2]
[323518401,1714063851013,-500.0,0.0001178,2]
[323518402,1714063851023,-500.0,0.0001178,2]
[323518403,1714063851033,-500.0,0.0001178,2]
[323518404,1714063851043,-359.61,0.0001178,2]
[323518405,1714063851052,-500.0,0.0001178,2]
[323518406,1714063851062,-500.0,0.0001178,2]
[323518407,1714063851071,-500.0,0.0001178,2]
[323518408,1714063851080,-500.0,0.0001178,2]
[323518409,1714063851091,-592.67,0.0001178,2]
[323518410,1714063851101,-592.91,0.0001178,2]
[323518411,1714063851111,-500.0,0.0001178,2]
[323518412,1714063851122,-691.94,0.0001178,2]
[323518413,1714063851132,-500.0,0.0001178,2]
[323518414,1714063851142,-500.0,0.0001178,2]
[323518415,1714063851153,-500.0,0.0001178,2]
[323518416,1714063851163,-500.0,0.0001178,2]
[323518417,1714063851174,-500.0,0.0001178,2]
[323518418,1714063851184,-692.68,0.0001178,2]
[323518419,1714063851195,-569.56,0.0001178,2]
[323518420,1714063851204,-500.0,0.0001178,2]
[323518421,1714063851215,-4681.31,0.0001178,2]
[323518422,1714063851225,-500.0,0.0001178,2]
[323518423,1714063851236,-500.0,0.0001178,2]
[323518424,1714063851249,-781.37,0.0001178,2]
[323518425,1714063851260,-500.0,0.0001178,2]
[323518426,1714063851270,-1847.03,0.0001178,2]
[323518427,1714063851281,-1849.43,0.0001178,2]
[323518428,1714063851292,-500.0,0.0001178,2]
[323518429,1714063851301,-1061.04,0.0001178,2]
[323518430,1714063851310,-500.0,0.0001178,2]
[323518431,1714063851321,-500.0,0.0001178,2]
[323518432,1714063851331,-8599.31,0.0001178,2]
[323518433,1714063851340,-500.0,0.0001178,2]
[323518434,1714063851349,-644.68,0.0001178,2]
[323518435,1714063851360,-907.76,0.0001178,2]
[323518436,1714063851370,-925.51,0.0001178,2]
[323518437,1714063851379,-775.97,0.0001178,2]
[323518438,1714063851389,-1668.07,0.0001178,2]
[323518439,1714063851398,-500.0,0.0001178,2]
[323518440,1714063851408,-459.85821443,0.0001178,2]
[323518441,1714063851418,-515.92,0.0001178,2]
[323518442,1714063851427,-500.0,0.0001178,2]
[323518443,1714063851436,-9433.81,0.0001178,2]
[323518444,1714063851445,-500.0,0.0001178,2]